[Event "SVK-ch Open 2018"]
[Site "Banska Stiavnica"]
[Date "2018.07.12"]
[Round "6"]
[White "Bednar, Jan"]
[Black "Pereszlenyi, Gejza"]
[Result "1-0"]
[ECO "B10"]
[WhiteElo "2010"]
[BlackElo "1899"]
[Annotator "NA"]
[PlyCount "47"]
[EventDate "2018.07.07"]
[EventType "swiss"]
[EventCountry "SVK"]
[SourceTitle "playchess.com"]
[Source "ChessBase"]
[SourceQuality "1"]
[TimeControl "40/5400+30:1800+30"]

1. e4 {[%emt 0:00:00]} c6 {[%emt 0:04:47]} 2. Nf3 {[%emt 0:00:09]} d5 {[%emt 0:01:16]} 3. Nc3 {[%emt 0:00:12]} dxe4 {[%emt 0:03:15]} 4. Nxe4 {[%emt 0:00:09]} Nf6 {[%emt 0:02:58]} 5. Neg5 {[%emt 0:06:58]} Bf5 {[%emt 0:05:03]} 6. Bc4 {[%emt 0:03:35]} e6 {[%emt 0:02:44]} 7. Ne5 {[%emt 0:01:05]} Bg6 {[%emt 0:02:29]} 8. Qe2 {[%emt 0:00:28]} Nd5 {[%emt 0:03:50]} 9. Nxg6 {[%emt 0:08:34]} hxg6 {[%emt 0:09:25]} 10. Ne4 {[%emt 0:02:09]} Qc7 {[%emt 0:04:30]} 11. g3 {[%emt 0:06:49]} Nd7 {[%emt 0:01:00]} 12. d3 {[%emt 0:00:47]} O-O-O {[%emt 0:11:37]} 13. Bd2 {[%emt 0:01:21]} Be7 {[%emt 0:10:00]} 14. O-O-O {[%emt 0:03:00]} Rh5 {[%emt 0:03:58]} 15. h4 {[%emt 0:04:28]} Rdh8 {[%emt 0:00:33]} 16. Kb1 {[%emt 0:11:17]} Bf6 {[%emt 0:00:32]} 17. c3 {[%emt 0:03:28]} Ne5 {[%emt 0:03:06]} 18. Bb3 {[%emt 0:02:00]} Be7 {[%emt 0:03:41]} 19. d4 {[%emt 0:02:04]} Nd7 {[%emt 0:01:03]} 20. Rhe1 {[%emt 0:04:26]} N7f6 {[%emt 0:00:49]} 21. Ng5 {[%emt 0:00:42]} Rf8 {[%emt 0:04:24]} 22. Nxf7 {[%emt 0:03:13]} e5 {[%emt 0:03:04]} 23. Nxe5 {[%emt 0:00:22]} Re8 {[%emt 0:00:24]} 24. Qd3 {[%emt 0:01:43]} 1-0

[Event "SVK-ch Open 2018"]
[Site "Banska Stiavnica"]
[Date "2018.07.12"]
[Round "6"]
[White "Milcova, Zuzana"]
[Black "Ruckschloss, Karol"]
[Result "1/2-1/2"]
[ECO "C01"]
[WhiteElo "2002"]
[BlackElo "2245"]
[Annotator "NA"]
[PlyCount "73"]
[EventDate "2018.07.07"]
[EventType "swiss"]
[EventCountry "SVK"]
[SourceTitle "playchess.com"]
[Source "ChessBase"]
[SourceQuality "1"]
[TimeControl "40/5400+30:1800+30"]

1. e4 {[%emt 0:00:00]} e6 {[%emt 0:00:00]} 2. d4 {[%emt 0:00:00]} d5 {[%emt 0:00:00]} 3. exd5 {[%emt 0:00:08]} exd5 {[%emt 0:00:00]} 4. Nf3 {[%emt 0:01:09]} Nf6 {[%emt 0:00:09]} 5. Bg5 {[%emt 0:02:21]} Be7 {[%emt 0:00:32]} 6. Bd3 {[%emt 0:01:03]} Bg4 {[%emt 0:01:29]} 7. h3 {[%emt 0:03:47]} Bh5 {[%emt 0:00:26]} 8. O-O {[%emt 0:07:53]} Nc6 {[%emt 0:08:48]} 9. c3 {[%emt 0:01:45]} Ne4 {[%emt 0:07:19]} 10. Bxe7 {[%emt 0:07:28]} Qxe7 {[%emt 0:03:35]} 11. Re1 {[%emt 0:01:33]} O-O-O {[%emt 0:01:55]} 12. Nbd2 {[%emt 0:07:58]} Bg6 {[%emt 0:11:01]} 13. Bb5 {[%emt 0:11:53]} Rd6 {[%emt 0:06:24]} 14. Bxc6 {[%emt 0:18:33]} Rxc6 {[%emt 0:00:19]} 15. c4 {[%emt 0:00:16]} Qd8 {[%emt 0:11:45]} 16. Ne5 {[%emt 0:04:30]} Re6 {[%emt 0:00:17]} 17. Nxe4 {[%emt 0:05:52]} dxe4 {[%emt 0:00:07]} 18. Nxg6 {[%emt 0:01:36]} hxg6 {[%emt 0:00:32]} 19. d5 {[%emt 0:00:49]} Re5 {[%emt 0:05:59]} 20. Qd4 {[%emt 0:03:13]} Qg5 {[%emt 0:01:52]} 21. Rxe4 {[%emt 0:03:14]} Rxe4 {[%emt 0:00:33]} 22. Qxe4 {[%emt 0:00:01]} Qf6 {[%emt 0:02:33]} 23. Qe2 {[%emt 0:05:04]} b6 {[%emt 0:00:33]} 24. Re1 {[%emt 0:00:11]} Rh4 {[%emt 0:00:57]} 25. b3 {[%emt 0:03:26]} Rf4 {[%emt 0:00:24]} 26. Qe8+ {[%emt 0:00:37]} Kb7 {[%emt 0:00:08]} 27. Re2 {[%emt 0:00:49]} g5 {[%emt 0:02:37]} 28. Qe5 {[%emt 0:07:02]} Rxf2 {[%emt 0:00:52]} 29. Qxf6 {[%emt 0:00:03]} Rxf6 {[%emt 0:00:08]} 30. Re5 {[%emt 0:00:29]} Rg6 {[%emt 0:01:11]} 31. g4 {[%emt 0:00:44]} a5 {[%emt 0:00:09]} 32. Kg2 {[%emt 0:00:06]} Kc8 {[%emt 0:00:07]} 33. Kg3 {[%emt 0:01:58]} Kd7 {[%emt 0:00:11]} 34. Rf5 {[%emt 0:00:25]} f6 {[%emt 0:01:22]} 35. Rf3 {[%emt 0:00:28]} Rh6 {[%emt 0:00:07]} 36. Re3 {[%emt 0:00:18]} Rh8 {[%emt 0:00:06]} 37. Kf2 {[%emt 0:00:50]} 1/2-1/2

[Event "SVK-ch Open 2018"]
[Site "Banska Stiavnica"]
[Date "2018.07.12"]
[Round "6"]
[White "Chrenko, Kristian"]
[Black "Slaba, Andrea"]
[Result "1-0"]
[ECO "B06"]
[WhiteElo "1992"]
[BlackElo "1936"]
[Annotator "NA"]
[PlyCount "67"]
[EventDate "2018.07.07"]
[EventType "swiss"]
[EventCountry "SVK"]
[SourceTitle "playchess.com"]
[Source "ChessBase"]
[SourceQuality "1"]
[TimeControl "40/5400+30:1800+30"]

1. e4 {[%emt 0:00:00]} g6 {[%emt 0:00:23]} 2. d4 {[%emt 0:00:00]} Bg7 {[%emt 0:00:05]} 3. Nc3 {[%emt 0:00:00]} d6 {[%emt 0:00:04]} 4. Be3 {[%emt 0:00:01]} c6 {[%emt 0:00:51]} 5. Qd2 {[%emt 0:00:04]} Nd7 {[%emt 0:00:58]} 6. O-O-O {[%emt 0:00:46]} b5 {[%emt 0:00:45]} 7. e5 {[%emt 0:01:16]} dxe5 {[%emt 0:03:06]} 8. d5 {[%emt 0:00:05]} c5 {[%emt 0:05:54]} 9. Bxb5 {[%emt 0:07:39]} a6 {[%emt 0:03:07]} 10. Ba4 {[%emt 0:00:52]} Qa5 {[%emt 0:02:11]} 11. Nge2 {[%emt 0:10:25]} Rb8 {[%emt 0:03:34]} 12. f4 {[%emt 0:07:17]} Qb4 {[%emt 0:01:28]} 13. b3 {[%emt 0:00:14]} Qa3+ {[%emt 0:01:13]} 14. Kb1 {[%emt 0:00:07]} e4 {[%emt 0:06:18]} 15. Qc1 {[%emt 0:04:23]} Qb4 {[%emt 0:01:00]} 16. a3 {[%emt 0:01:34]} Qa5 {[%emt 0:00:37]} 17. Bxd7+ {[%emt 0:06:37]} Bxd7 {[%emt 0:00:05]} 18. Nxe4 {[%emt 0:01:44]} c4 {[%emt 0:05:14]} 19. Ka2 {[%emt 0:03:58]} cxb3+ {[%emt 0:01:37]} 20. cxb3 {[%emt 0:00:37]} Qb5 {[%emt 0:00:38]} 21. Qc2 {[%emt 0:04:56]} Bg4 {[%emt 0:03:32]} 22. Nd4 {[%emt 0:09:56]} Bxd1 {[%emt 0:02:24]} 23. Rxd1 {[%emt 0:00:15]} Qd7 {[%emt 0:01:21]} 24. Nc6 {[%emt 0:02:46]} Rc8 {[%emt 0:02:26]} 25. Nc5 {[%emt 0:06:00]} Qd6 {[%emt 0:01:34]} 26. Nxa6 {[%emt 0:08:16]} Nf6 {[%emt 0:02:04]} 27. Bc5 {[%emt 0:03:22]} Qxf4 {[%emt 0:04:54]} 28. Bxe7 {[%emt 0:00:35]} Rxc6 {[%emt 0:02:43]} 29. Qxc6+ {[%emt 0:00:21]} Kxe7 {[%emt 0:00:05]} 30. Re1+ {[%emt 0:02:44]} Kd8 {[%emt 0:00:38]} 31. Qa8+ {[%emt 0:00:58]} Kd7 {[%emt 0:00:15]} 32. Nc5+ {[%emt 0:02:39]} Kc7 {[%emt 0:00:47]} 33. Na6+ {[%emt 0:01:57]} Kb6 {[%emt 0:03:43]} 34. Qc6+ {[%emt 0:00:11]} 1-0

[Event "SVK-ch Open 2018"]
[Site "Banska Stiavnica"]
[Date "2018.07.12"]
[Round "6"]
[White "Gyerpal, Adrian"]
[Black "Panko, Eduard"]
[Result "1/2-1/2"]
[ECO "C00"]
[WhiteElo "1990"]
[BlackElo "1958"]
[Annotator "NA"]
[PlyCount "84"]
[EventDate "2018.07.07"]
[EventType "swiss"]
[EventCountry "SVK"]
[SourceTitle "playchess.com"]
[Source "ChessBase"]
[SourceQuality "1"]
[TimeControl "40/5400+30:1800+30"]

1. e4 {[%emt 0:00:00]} e6 {[%emt 0:00:00]} 2. d3 {[%emt 0:00:35]} d5 {[%emt 0:00:31]} 3. Nd2 {[%emt 0:00:26]} c5 {[%emt 0:00:36]} 4. Ngf3 {[%emt 0:00:39]} Nc6 {[%emt 0:00:52]} 5. g3 {[%emt 0:01:01]} g6 {[%emt 0:00:34]} 6. Bg2 {[%emt 0:01:21]} Bg7 {[%emt 0:00:18]} 7. O-O {[%emt 0:01:12]} Nf6 {[%emt 0:04:05]} 8. Re1 {[%emt 0:07:41]} h6 {[%emt 0:03:42]} 9. c3 {[%emt 0:03:11]} b6 {[%emt 0:05:06]} 10. e5 {[%emt 0:09:05]} Nd7 {[%emt 0:00:43]} 11. d4 {[%emt 0:00:43]} a5 {[%emt 0:01:51]} 12. Nf1 {[%emt 0:08:00]} a4 {[%emt 0:04:56]} 13. h4 {[%emt 0:05:01]} h5 {[%emt 0:01:30]} 14. Bg5 {[%emt 0:02:16]} Qc7 {[%emt 0:00:01]} 15. Qc2 {[%emt 0:05:14]} c4 {[%emt 0:09:48]} 16. a3 {[%emt 0:04:55]} Bb7 {[%emt 0:04:50]} 17. Bh3 {[%emt 0:02:11]} Nf8 {[%emt 0:05:52]} 18. Ne3 {[%emt 0:03:28]} Nh7 {[%emt 0:06:01]} 19. Bf4 {[%emt 0:02:03]} b5 {[%emt 0:02:15]} 20. Nxd5 {[%emt 0:08:14]} Qd8 {[%emt 0:09:49]} 21. Ne3 {[%emt 0:04:45]} Ne7 {[%emt 0:01:05]} 22. Bg2 {[%emt 0:01:49]} Nd5 {[%emt 0:02:29]} 23. Nxd5 {[%emt 0:02:45]} Qxd5 {[%emt 0:01:35]} 24. Red1 {[%emt 0:01:05]} Qxf3 {[%emt 0:05:27]} 25. Bxf3 {[%emt 0:00:54]} Bxf3 {[%emt 0:00:02]} 26. Re1 {[%emt 0:03:08]} Bd5 {[%emt 0:02:24]} 27. Qd2 {[%emt 0:02:25]} Nf8 {[%emt 0:01:30]} 28. Bg5 {[%emt 0:02:20]} Nd7 {[%emt 0:00:32]} 29. Qe3 {[%emt 0:01:23]} Rh7 {[%emt 0:03:28]} 30. f3 {[%emt 0:01:29]} Rc8 {[%emt 0:02:03]} 31. Rf1 {[%emt 0:01:37]} Rc7 {[%emt 0:01:32]} 32. Rf2 {[%emt 0:01:30]} Nb8 {[%emt 0:04:01]} 33. Raf1 {[%emt 0:00:31]} Nc6 {[%emt 0:01:09]} 34. g4 {[%emt 0:01:32]} Ne7 {[%emt 0:01:59]} 35. Qf4 {[%emt 0:02:07]} Bf8 {[%emt 0:01:29]} 36. Qg3 {[%emt 0:01:26]} Rc6 {[%emt 0:01:09]} 37. Rh2 {[%emt 0:01:11]} Rc7 {[%emt 0:02:12]} 38. f4 {[%emt 0:03:29]} hxg4 {[%emt 0:02:19]} 39. Bxe7 {[%emt 0:01:59]} Bxe7 {[%emt 0:01:29]} 40. Qxg4 {[%emt 0:00:14]} Rh5 {[%emt 0:01:21]} 41. Re1 {[%emt 0:08:45]} Rc6 {[%emt 0:01:46]} 42. Re3 {[%emt 0:00:58]} Kd7 1/2-1/2

[Event "SVK-ch Open 2018"]
[Site "Banska Stiavnica"]
[Date "2018.07.12"]
[Round "6"]
[White "Mandak, Miroslav"]
[Black "Petran, Peter"]
[Result "0-1"]
[ECO "A04"]
[WhiteElo "1989"]
[BlackElo "2302"]
[Annotator "NA"]
[PlyCount "68"]
[EventDate "2018.07.07"]
[EventType "swiss"]
[EventCountry "SVK"]
[SourceTitle "playchess.com"]
[Source "ChessBase"]
[SourceQuality "1"]
[TimeControl "40/5400+30:1800+30"]

1. Nf3 {[%emt 0:00:02]} g6 {[%emt 0:00:00]} 2. g3 {[%emt 0:00:56]} Bg7 {[%emt 0:00:00]} 3. Bg2 {[%emt 0:00:58]} e5 {[%emt 0:00:00]} 4. O-O {[%emt 0:00:38]} d5 {[%emt 0:00:00]} 5. c3 {[%emt 0:03:21]} Ne7 {[%emt 0:00:29]} 6. d3 {[%emt 0:02:55]} Nbc6 {[%emt 0:00:21]} 7. Nbd2 {[%emt 0:01:58]} h6 {[%emt 0:00:24]} 8. Ne1 {[%emt 0:07:29]} Be6 {[%emt 0:00:11]} 9. e3 {[%emt 0:02:23]} Qd7 {[%emt 0:00:11]} 10. d4 {[%emt 0:01:45]} Bh3 {[%emt 0:02:14]} 11. Nd3 {[%emt 0:01:19]} Bxg2 {[%emt 0:02:57]} 12. Kxg2 {[%emt 0:01:02]} f6 {[%emt 0:10:25]} 13. b4 {[%emt 0:04:50]} b6 {[%emt 0:03:03]} 14. a4 {[%emt 0:01:42]} Nd8 {[%emt 0:05:30]} 15. a5 {[%emt 0:12:35]} Ne6 {[%emt 0:00:18]} 16. f4 {[%emt 0:04:00]} e4 {[%emt 0:02:07]} 17. Nf2 {[%emt 0:01:14]} b5 {[%emt 0:01:39]} 18. g4 {[%emt 0:09:12]} f5 {[%emt 0:02:47]} 19. Nb3 {[%emt 0:02:26]} c6 {[%emt 0:07:09]} 20. Bd2 {[%emt 0:02:27]} O-O-O {[%emt 0:00:30]} 21. Kh1 {[%emt 0:01:23]} Rdf8 {[%emt 0:00:31]} 22. Qe2 {[%emt 0:00:31]} g5 {[%emt 0:02:22]} 23. Nc5 {[%emt 0:06:58]} Nxc5 {[%emt 0:00:13]} 24. bxc5 {[%emt 0:01:25]} gxf4 {[%emt 0:00:49]} 25. exf4 {[%emt 0:00:25]} Rhg8 {[%emt 0:03:37]} 26. Rg1 {[%emt 0:04:44]} Ng6 {[%emt 0:05:45]} 27. Be3 {[%emt 0:06:04]} Nh4 {[%emt 0:01:13]} 28. Rg3 {[%emt 0:02:08]} Nf3 {[%emt 0:02:42]} 29. a6 {[%emt 0:03:03]} fxg4 {[%emt 0:03:57]} 30. Nxg4 {[%emt 0:04:09]} Bxd4 {[%emt 0:00:12]} 31. cxd4 {[%emt 0:03:31]} Rxg4 {[%emt 0:00:24]} 32. Rxg4 {[%emt 0:02:58]} Qxg4 {[%emt 0:00:09]} 33. Rg1 {[%emt 0:00:06]} Qh5 {[%emt 0:14:46]} 34. Qg2 {[%emt 0:02:03]} Nxg1 {[%emt 0:00:38]} 0-1

[Event "SVK-ch Open 2018"]
[Site "Banska Stiavnica"]
[Date "2018.07.12"]
[Round "6"]
[White "Gombar, Peter"]
[Black "Vyletel, Samuel"]
[Result "1-0"]
[ECO "D05"]
[WhiteElo "1974"]
[BlackElo "1798"]
[Annotator "NA"]
[PlyCount "79"]
[EventDate "2018.07.07"]
[EventType "swiss"]
[EventCountry "SVK"]
[SourceTitle "playchess.com"]
[Source "ChessBase"]
[SourceQuality "1"]
[TimeControl "40/5400+30:1800+30"]

1. d4 {[%emt 0:00:00]} d5 {[%emt 0:00:00]} 2. Nf3 {[%emt 0:00:03]} Nf6 {[%emt 0:00:30]} 3. e3 {[%emt 0:00:40]} e6 {[%emt 0:03:22]} 4. Bd3 {[%emt 0:00:14]} c5 {[%emt 0:01:14]} 5. c3 {[%emt 0:00:15]} Nc6 {[%emt 0:01:15]} 6. Nbd2 {[%emt 0:00:38]} Bd6 {[%emt 0:01:04]} 7. O-O {[%emt 0:00:46]} O-O {[%emt 0:00:30]} 8. dxc5 {[%emt 0:03:25]} Bxc5 {[%emt 0:00:49]} 9. e4 {[%emt 0:07:37]} dxe4 {[%emt 0:05:01]} 10. Nxe4 {[%emt 0:00:19]} Nxe4 {[%emt 0:00:54]} 11. Bxe4 {[%emt 0:00:05]} Qxd1 {[%emt 0:11:48]} 12. Rxd1 {[%emt 0:00:46]} f5 {[%emt 0:06:13]} 13. Bxc6 {[%emt 0:04:46]} bxc6 {[%emt 0:00:43]} 14. Ne5 {[%emt 0:00:19]} Bb6 {[%emt 0:07:52]} 15. Nxc6 {[%emt 0:02:42]} Bb7 {[%emt 0:01:33]} 16. Ne5 {[%emt 0:05:02]} Rad8 {[%emt 0:01:36]} 17. Bg5 {[%emt 0:07:41]} Rd5 {[%emt 0:02:49]} 18. Rxd5 {[%emt 0:00:14]} Bxd5 {[%emt 0:00:24]} 19. c4 {[%emt 0:10:16]} Be4 {[%emt 0:02:12]} 20. Rd1 {[%emt 0:03:33]} h6 {[%emt 0:04:21]} 21. Be3 {[%emt 0:03:19]} Bxe3 {[%emt 0:07:24]} 22. fxe3 {[%emt 0:01:17]} Rb8 {[%emt 0:03:40]} 23. b3 {[%emt 0:09:28]} a5 {[%emt 0:01:04]} 24. Nd7 {[%emt 0:07:37]} Rc8 {[%emt 0:03:44]} 25. Nb6 {[%emt 0:02:27]} Rc6 {[%emt 0:01:58]} 26. Na4 {[%emt 0:00:30]} g5 {[%emt 0:00:59]} 27. Nc3 {[%emt 0:00:25]} Kf7 {[%emt 0:06:52]} 28. Nxe4 {[%emt 0:01:23]} fxe4 {[%emt 0:00:02]} 29. Rd4 {[%emt 0:03:47]} Kf6 {[%emt 0:00:51]} 30. Kf2 {[%emt 0:01:46]} Kf5 {[%emt 0:00:39]} 31. Ke2 {[%emt 0:00:33]} Rb6 {[%emt 0:03:28]} 32. Kd2 {[%emt 0:01:55]} h5 {[%emt 0:02:21]} 33. Kc3 {[%emt 0:00:23]} h4 {[%emt 0:03:03]} 34. c5 {[%emt 0:00:21]} Rc6 {[%emt 0:01:00]} 35. Kc4 {[%emt 0:00:18]} a4 {[%emt 0:01:55]} 36. b4 {[%emt 0:00:21]} e5 {[%emt 0:00:38]} 37. Rd2 {[%emt 0:00:56]} Kg4 {[%emt 0:00:34]} 38. b5 {[%emt 0:00:12]} Rc8 {[%emt 0:00:21]} 39. b6 {[%emt 0:02:10]} h3 {[%emt 0:00:17]} 40. b7 {[%emt 0:00:31]} 1-0

[Event "SVK-ch Open 2018"]
[Site "Banska Stiavnica"]
[Date "2018.07.12"]
[Round "6"]
[White "Sandor, Martin"]
[Black "Stockova, Zuzana"]
[Result "0-1"]
[ECO "B32"]
[WhiteElo "1968"]
[BlackElo "2301"]
[Annotator "NA"]
[PlyCount "84"]
[EventDate "2018.07.07"]
[EventType "swiss"]
[EventCountry "SVK"]
[SourceTitle "playchess.com"]
[Source "ChessBase"]
[SourceQuality "1"]
[TimeControl "40/5400+30:1800+30"]

1. e4 {[%emt 0:00:00]} c5 {[%emt 0:00:00]} 2. Nf3 {[%emt 0:00:00]} Nc6 {[%emt 0:00:00]} 3. d4 {[%emt 0:00:00]} cxd4 {[%emt 0:00:00]} 4. Nxd4 {[%emt 0:00:00]} e5 $11 {[%emt 0:00:13] LiveBook: 5756 Games} 5. Nb5 {[%emt 0:00:55]} d6 {[%emt 0:00:31]} 6. N1c3 {[%emt 0:00:55]} a6 {[%emt 0:00:18]} 7. Na3 {[%emt 0:00:05]} Be7 {[%emt 0:00:32]} 8. Nd5 {[%emt 0:06:16]} Be6 {[%emt 0:12:48]} 9. Be3 {[%emt 0:07:22]} Bxd5 {[%emt 0:17:01]} 10. exd5 {[%emt 0:00:46]} Nb8 {[%emt 0:02:10]} 11. g3 {[%emt 0:08:04]} Nd7 {[%emt 0:02:27]} 12. c3 {[%emt 0:03:23]} Ngf6 {[%emt 0:08:16]} 13. Bg2 {[%emt 0:02:24]} O-O {[%emt 0:01:34]} 14. O-O {[%emt 0:03:22]} Ne8 {[%emt 0:02:13]} 15. Qd2 {[%emt 0:07:26]} Rc8 {[%emt 0:02:10]} 16. Nc2 {[%emt 0:13:22]} Nc5 {[%emt 0:00:45]} 17. Bxc5 {[%emt 0:05:34]} Rxc5 {[%emt 0:01:42]} 18. Ne3 {[%emt 0:02:34]} f5 {[%emt 0:05:09]} 19. Bh3 {[%emt 0:02:55]} g6 {[%emt 0:01:16]} 20. Rae1 {[%emt 0:04:19]} f4 {[%emt 0:03:06]} 21. gxf4 {[%emt 0:02:29]} exf4 {[%emt 0:14:32]} 22. Nc2 {[%emt 0:02:12]} Ng7 {[%emt 0:00:15]} 23. Be6+ {[%emt 0:13:27]} Nxe6 {[%emt 0:00:54]} 24. Rxe6 {[%emt 0:00:30]} f3 {[%emt 0:03:54]} 25. Kh1 {[%emt 0:02:15]} Bf6 {[%emt 0:14:27]} 26. Rfe1 {[%emt 0:02:48]} Rc4 {[%emt 0:02:13]} 27. R1e4 {[%emt 0:01:55]} Rxe4 {[%emt 0:00:20]} 28. Rxe4 {[%emt 0:00:07]} Be5 {[%emt 0:01:20]} 29. Nd4 {[%emt 0:01:12]} Qf6 {[%emt 0:00:21]} 30. Ne6 {[%emt 0:00:32]} Re8 {[%emt 0:00:36]} 31. Qe3 {[%emt 0:02:38]} Qf5 {[%emt 0:00:52]} 32. Nd4 {[%emt 0:01:26]} Qh3 {[%emt 0:00:28]} 33. Nxf3 {[%emt 0:01:16]} Rf8 {[%emt 0:00:14]} 34. Rxe5 {[%emt 0:01:54]} dxe5 {[%emt 0:00:17]} 35. Ng1 {[%emt 0:00:33]} Qxe3 {[%emt 0:00:26]} 36. fxe3 {[%emt 0:00:05]} Rf2 {[%emt 0:00:26]} 37. c4 {[%emt 0:00:23]} Kf7 {[%emt 0:03:19]} 38. Nh3 {[%emt 0:00:53]} Rxb2 {[%emt 0:00:11]} 39. Ng5+ {[%emt 0:00:07]} Ke7 {[%emt 0:00:20]} 40. c5 {[%emt 0:01:51]} Rxa2 {[%emt 0:01:01]} 41. d6+ {[%emt 0:31:27]} Ke8 {[%emt 0:30:38]} 42. Ne4 {[%emt 0:00:00]} Rc2 {[%emt 0:00:00]} 0-1

[Event "SVK-ch Open 2018"]
[Site "Banska Stiavnica"]
[Date "2018.07.12"]
[Round "6"]
[White "Jencopala, Alexander"]
[Black "Bobro, Jan"]
[Result "1/2-1/2"]
[ECO "B43"]
[WhiteElo "1943"]
[BlackElo "1584"]
[Annotator "NA"]
[PlyCount "34"]
[EventDate "2018.07.07"]
[EventType "swiss"]
[EventCountry "SVK"]
[SourceTitle "playchess.com"]
[Source "ChessBase"]
[SourceQuality "1"]
[TimeControl "40/5400+30:1800+30"]

1. e4 {[%emt 0:00:00]} c5 {[%emt 0:00:00]} 2. Nf3 {[%emt 0:00:00]} e6 {[%emt 0:00:00]} 3. d4 {[%emt 0:00:09]} cxd4 {[%emt 0:00:00]} 4. Nxd4 {[%emt 0:00:13]} a6 {[%emt 0:00:11]} 5. Nc3 {[%emt 0:00:23]} b5 {[%emt 0:01:18]} 6. Bd3 {[%emt 0:00:59]} Bc5 {[%emt 0:02:32]} 7. Nb3 {[%emt 0:00:57]} Bb6 {[%emt 0:00:49]} 8. O-O {[%emt 0:01:32]} Qc7 {[%emt 0:02:09]} 9. Re1 {[%emt 0:02:57]} d6 {[%emt 0:06:58]} 10. Be3 {[%emt 0:04:23]} Bxe3 {[%emt 0:07:45]} 11. Rxe3 {[%emt 0:00:20]} Nf6 {[%emt 0:01:57]} 12. Rg3 {[%emt 0:05:31]} O-O {[%emt 0:00:52]} 13. Qf3 {[%emt 0:01:05]} Nbd7 {[%emt 0:03:12]} 14. e5 {[%emt 0:19:19]} Bb7 {[%emt 0:07:46]} 15. exf6 {[%emt 0:08:31]} Bxf3 {[%emt 0:01:38]} 16. Rxg7+ {[%emt 0:00:16]} Kh8 {[%emt 0:00:16]} 17. Rxh7+ {[%emt 0:00:21]} Kg8 {[%emt 0:00:32]} 1/2-1/2

[Event "SVK-ch Open 2018"]
[Site "Banska Stiavnica"]
[Date "2018.07.12"]
[Round "6"]
[White "Tomanek, Rafael"]
[Black "Seres, Bela"]
[Result "0-1"]
[ECO "A43"]
[WhiteElo "1939"]
[BlackElo "2212"]
[Annotator "NA"]
[PlyCount "82"]
[EventDate "2018.07.07"]
[EventType "swiss"]
[EventCountry "SVK"]
[SourceTitle "playchess.com"]
[Source "ChessBase"]
[SourceQuality "1"]
[TimeControl "40/5400+30:1800+30"]

1. d4 {[%emt 0:00:00]} c5 {[%emt 0:00:00]} 2. Nf3 {[%emt 0:00:00]} e6 {[%emt 0:00:05]} 3. c4 {[%emt 0:00:17]} Nf6 {[%emt 0:00:54]} 4. Nc3 {[%emt 0:00:28]} a6 {[%emt 0:00:15]} 5. e4 {[%emt 0:03:10]} cxd4 {[%emt 0:00:13]} 6. Nxd4 {[%emt 0:00:07]} Qc7 {[%emt 0:01:53]} 7. Be2 {[%emt 0:04:14]} b6 {[%emt 0:07:33]} 8. Be3 {[%emt 0:01:38]} Bb7 {[%emt 0:01:02]} 9. Qd3 {[%emt 0:06:47]} Nc6 {[%emt 0:02:49]} 10. Nxc6 {[%emt 0:00:44]} Bxc6 {[%emt 0:01:22]} 11. O-O {[%emt 0:05:36]} Bb4 {[%emt 0:04:36]} 12. f3 {[%emt 0:01:03]} Bd6 {[%emt 0:00:47]} 13. f4 {[%emt 0:03:41]} Bb4 {[%emt 0:08:50]} 14. Bf3 {[%emt 0:05:47]} h5 {[%emt 0:05:03]} 15. a3 {[%emt 0:12:23]} Be7 {[%emt 0:02:44]} 16. e5 {[%emt 0:08:33]} Ng4 {[%emt 0:02:44]} 17. Bd4 {[%emt 0:00:20]} Rc8 {[%emt 0:04:01]} 18. b3 {[%emt 0:03:44]} d6 {[%emt 0:04:52]} 19. exd6 {[%emt 0:07:11]} Qxd6 {[%emt 0:02:42]} 20. Rad1 {[%emt 0:04:32]} Bxf3 {[%emt 0:11:39]} 21. Rxf3 {[%emt 0:00:41]} Qxa3 {[%emt 0:07:49]} 22. Bxg7 {[%emt 0:06:56]} Rd8 {[%emt 0:00:18]} 23. Nd5 {[%emt 0:03:12]} Qc5+ {[%emt 0:06:34]} 24. Kh1 {[%emt 0:09:30]} Rg8 {[%emt 0:02:06]} 25. b4 {[%emt 0:00:35]} Qd6 {[%emt 0:09:08]} 26. Qh7 {[%emt 0:02:28]} Rxg7 {[%emt 0:00:28]} 27. Qxg7 {[%emt 0:00:38]} exd5 {[%emt 0:06:17]} 28. Qh8+ {[%emt 0:01:03]} Kd7 {[%emt 0:03:53]} 29. Qxh5 {[%emt 0:00:11]} Nf6 {[%emt 0:00:40]} 30. Qf5+ {[%emt 0:00:25]} Qe6 {[%emt 0:00:24]} 31. Qd3 {[%emt 0:00:38]} Kc7 {[%emt 0:02:00]} 32. cxd5 {[%emt 0:03:50]} Rxd5 {[%emt 0:00:05]} 33. Rc1+ {[%emt 0:00:29]} Kb7 {[%emt 0:00:15]} 34. Qc2 {[%emt 0:01:09]} Qd7 {[%emt 0:00:37]} 35. Rc3 {[%emt 0:03:04]} Bd6 {[%emt 0:00:45]} 36. g3 {[%emt 0:00:20]} Bb8 {[%emt 0:01:17]} 37. Rc6 {[%emt 0:00:36]} Rd2 {[%emt 0:00:20]} 38. Qb3 {[%emt 0:01:21]} Ng4 {[%emt 0:00:38]} 39. Qf3 {[%emt 0:00:42]} Rxh2+ 40. Kg1 Qd4+ {[%emt 0:00:35]} 41. Kf1 {[%emt 0:30:25]} Rf2+ {[%emt 0:30:05]} 0-1

[Event "SVK-ch Open 2018"]
[Site "Banska Stiavnica"]
[Date "2018.07.12"]
[Round "6"]
[White "Liska, Jaroslav"]
[Black "Bartek, Ladislav"]
[Result "1-0"]
[ECO "C85"]
[WhiteElo "1914"]
[BlackElo "2049"]
[Annotator "NA"]
[PlyCount "24"]
[EventDate "2018.07.07"]
[EventType "swiss"]
[EventCountry "SVK"]
[SourceTitle "playchess.com"]
[Source "ChessBase"]
[SourceQuality "1"]
[TimeControl "40/5400+30:1800+30"]

1. e4 {[%emt 0:00:00]} e5 {[%emt 0:00:00]} 2. Nf3 {[%emt 0:00:00]} Nc6 {[%emt 0:00:00]} 3. Bb5 {[%emt 0:00:21]} a6 {[%emt 0:00:00]} 4. Ba4 {[%emt 0:00:20]} Nf6 {[%emt 0:00:00]} 5. O-O {[%emt 0:00:28]} Be7 {[%emt 0:00:07]} 6. Bxc6 {[%emt 0:00:58]} dxc6 {[%emt 0:00:08]} 7. Nxe5 {[%emt 0:00:24]} Nxe4 {[%emt 0:00:13]} 8. d3 {[%emt 0:02:03]} Nd6 {[%emt 0:00:15]} 9. Bf4 {[%emt 0:04:02]} O-O {[%emt 0:01:58]} 10. Nd2 {[%emt 0:01:06]} Bf6 {[%emt 0:00:30]} 11. d4 {[%emt 0:00:36]} Re8 {[%emt 0:02:28]} 12. Ndf3 {[%emt 0:00:42]} Bg4 {[%emt 0:00:55]} 1-0